bitfinex-derivatives/quotes_SOLF0:USTF0_20240906
["timestamp","ask_amount","ask_price","bid_price","bid_amount"]
[1725632637239,44.70179791,129.85,129.76,37.03]
[1725632637427,37.03,129.85,129.76,37.03]
[1725632638030,40.86936409,129.85,129.76,37.03]
[1725632638231,40.86936409,129.85,129.77,3.78156556]
[1725632638439,37.03,129.83,129.74,37.03]
[1725632638741,40.86936409,129.85,129.74,37.03]
[1725632638944,40.86936409,129.85,129.82,3.8523]
[1725632639240,44.72086409,129.85,129.82,3.8523]
[1725632639433,40.86936409,129.85,129.83,3.8521]
[1725632639745,1.2903,129.89,129.79,3.79543721]
[1725632639940,37.03,129.88,129.76,37.03]
[1725632640139,3.8511,129.87,129.76,37.03]
[1725632640444,37.03,129.88,129.76,37.03]
[1725632640638,37.03,129.88,129.87,3.8509]
[1725632640940,37.03,129.88,129.83,3.90354395]
[1725632641137,37.03,129.86,129.83,3.90354395]
[1725632641446,3.8515,129.85,129.83,3.90354395]
[1725632641646,3.76133764,129.84,129.81,3.8525]
[1725632641843,37.03,129.82,129.72,38.3597]
[1725632642339,37.03,129.82,129.72,1.3297]
[1725632642542,3.8528,129.81,129.72,1.3297]
[1725632642839,37.03,129.8,129.72,1.3297]
[1725632643045,37.03,129.78,129.72,1.3297]
[1725632643444,37.03,129.78,129.74,3.8546]
[1725632643841,44.76656007,129.78,129.74,3.8546]
[1725632644048,44.76656007,129.78,129.75,3.8544]
[1725632644347,44.76656007,129.78,129.72,1.3297]
[1725632644548,44.76656007,129.78,129.7,3.9156911]
[1725632644549,3.88286007,129.78,129.7,3.8559]
[1725632644743,37.03,129.72,129.67,3.77030223]
[1725632645049,24.347,129.8,129.69,3.8562]
[1725632645246,37.03,129.71,129.62,1.3791]
[1725632645642,37.03,129.72,129.62,1.3791]
[1725632645643,37.03,129.72,129.63,37.03]
[1725632645851,3.8789111,129.73,129.63,37.03]
[1725632646050,3.8789111,129.73,129.69,3.856]
[1725632646644,37.03,129.72,129.69,3.856]
[1725632646848,37.03,129.72,129.68,3.8565]
[1725632647143,1.2832,129.73,129.63,37.03]
[1725632647340,1.2832,129.73,129.7,3.8557]
[1725632647539,1.2832,129.73,129.65,37.03]
[1725632647743,38.3132,129.73,129.69,3.8561]
[1725632647939,38.3132,129.73,129.62,5.19667377]
[1725632648142,42.1684,129.73,129.62,5.19667377]
[1725632648339,38.3132,129.73,129.63,37.03]
[1725632648958,38.3132,129.73,129.7,3.8558]
[1725632649144,38.3132,129.73,129.63,37.03]
[1725632649850,38.3132,129.73,129.7,3.8559]
[1725632650251,38.3132,129.73,129.63,37.03]
[1725632650642,1.2832,129.73,129.65,37.03]
[1725632650847,1.2832,129.73,129.7,3.8557]
[1725632651151,37.03,129.78,129.69,3.94310357]
[1725632651352,37.03,129.76,129.68,37.03]
[1725632651552,3.89643734,129.75,129.66,37.03]
[1725632652047,3.89643734,129.75,129.72,3.8552]
[1725632652243,37.03,129.76,129.7,3.90642174]
[1725632652443,37.03,129.76,129.62,5.19667377]
[1725632652444,37.03,129.76,129.68,37.03]
[1725632652649,37.03,129.8,129.7,37.03]
[1725632652857,37.03,129.8,129.71,1.3513]
[1725632653261,40.8832,129.8,129.76,3.854]
[1725632653655,3.854,129.77,129.71,1.3513]
[1725632653862,37.03,129.79,129.71,1.3513]
[1725632654052,3.9421,129.83,129.71,1.3513]
[1725632654053,37.03,129.8,129.71,38.3813]
[1725632654253,37.03,129.82,129.71,38.3813]
[1725632654952,40.8825,129.82,129.71,38.3813]
[1725632655157,37.03,129.82,129.71,38.3813]
[1725632655350,37.03,129.8,129.71,38.3813]
[1725632655958,37.03,129.78,129.71,1.3513]
[1725632656360,37.03,129.8,129.71,38.3813]
[1725632656563,37.03,129.82,129.73,37.03]
[1725632656760,1.2973,129.83,129.73,37.03]
[1725632657159,5.1495,129.83,129.79,3.8532]
[1725632657355,37.03,129.82,129.71,46.0923]
[1725632657563,40.8826,129.82,129.78,3.8534]
[1725632657764,37.03,129.8,129.71,1.3513]
[1725632657961,37.03,129.76,129.69,2.6861]
[1725632658260,40.90523743,129.76,129.74,3.8546]
[1725632658859,40.90523743,129.76,129.69,2.6861]
[1725632659062,37.03,129.76,129.7,3.86362046]
[1725632659463,37.03,129.78,129.69,2.6861]
[1725632659767,37.03,129.78,129.69,6.5971434]
[1725632659963,37.03,129.76,129.73,3.8549]
[1725632660263,37.03,129.76,129.7,3.81966748]
[1725632660465,37.03,129.78,129.75,3.8543]
[1725632660763,37.03,129.78,129.7,3.91798334]
[1725632661359,3.8539,129.77,129.69,1.3409]
[1725632661553,37.03,129.76,129.69,5.19989383]
[1725632661760,38.3282,129.76,129.65,44.7446]
[1725632661959,37.03,129.74,129.65,37.03]
[1725632662170,3.76173909,129.73,129.64,2.6982]
[1725632662459,1.2982,129.76,129.75,3.8545]
[1725632663569,1.2982,129.76,129.74,3.8546]
[1725632663767,1.2982,129.76,129.69,3.76829398]
[1725632664063,37.03,129.75,129.72,3.8552]
[1725632664254,37.03,129.73,129.64,1.3768]
[1725632664455,37.03,129.73,129.59,7.7182]
[1725632664456,37.03,129.7,129.6,38.3434]
[1725632664667,37.03,129.68,129.59,5.23557417]
[1725632664967,37.03,129.64,129.51,3.80415312]
[1725632665162,37.03,129.64,129.52,39.7112]
[1725632665369,3.8582,129.63,129.52,39.7112]
[1725632665566,37.03,129.62,129.57,3.8596]
[1725632665762,37.03,129.62,129.52,39.7112]
[1725632665763,0.05844316,129.59,129.52,39.7112]
[1725632665968,0.05844316,129.59,129.52,2.6812]
[1725632666168,37.03,129.56,129.46,37.03]
[1725632666363,37.03,129.54,129.44,37.03]
[1725632666964,37.03,129.54,129.44,40.88767131]
[1725632667263,38.3436,129.61,129.43,1.4047]
[1725632667264,37.03,129.52,129.5,0.05883254]
[1725632667665,37.03,129.51,129.42,2.6812]
[1725632667868,0.05852759,129.5,129.42,1.3134]
[1725632668061,0.05852759,129.5,129.4,3.85689923]
[1725632668062,44.52,129.49,129.4,3.85689923]
[1725632668264,0.05852759,129.5,129.35,47.3056]
[1725632668265,44.52,129.47,129.35,47.3056]
[1725632668473,44.52,129.44,129.35,6.64233197]
[1725632668877,44.52,129.47,129.37,44.52]
[1725632669062,44.52,129.47,129.45,3.8634]
[1725632669261,44.52,129.47,129.37,44.52]
[1725632669468,48.33074028,129.47,129.35,51.16233197]
[1725632669673,48.44016727,129.47,129.35,51.16233197]
[1725632670074,0.05493263,129.47,129.38,44.52]
[1725632670271,0.05493263,129.47,129.46,3.8631]
[1725632670476,3.88378591,129.5,129.43,3.80532949]
[1725632670674,3.88378591,129.5,129.38,44.52]
[1725632670870,3.88378591,129.5,129.48,3.8624]
[1725632671175,44.52,129.51,129.38,44.52]
[1725632671577,0.05720605,129.5,129.48,3.8622]
[1725632671874,44.52,129.61,129.49,44.52]
[1725632672079,44.52,129.64,129.52,44.52]
[1725632672280,3.94701915,129.63,129.52,44.52]
[1725632672578,44.52,129.64,129.6,3.8587]
[1725632672776,44.52,129.64,129.52,44.52]
[1725632672777,48.41292923,129.64,129.52,44.52]
[1725632672966,44.52,129.62,129.5,44.52]
[1725632673471,44.52,129.67,129.55,44.52]
[1725632673676,2.6373,129.7,129.57,44.52]
[1725632673677,3.83420302,129.66,129.57,44.52]
[1725632673869,44.52,129.69,129.57,44.52]
[1725632674374,44.52,129.67,129.55,44.52]
[1725632675171,44.52,129.65,129.52,44.52]
[1725632675375,44.52,129.62,129.52,44.52]
[1725632675972,44.52,129.64,129.52,44.52]
[1725632676374,44.52,129.66,129.54,44.52]
[1725632676578,52.26226629,129.66,129.54,44.52]
[1725632677075,52.26226629,129.66,129.58,3.8595]
[1725632677076,44.52,129.64,129.58,3.8595]
[1725632677481,3.8583,129.63,129.58,3.8595]
[1725632677980,44.52,129.61,129.5,1.3031]
[1725632678573,48.3788,129.61,129.56,3.8599]
[1725632678875,44.52,129.61,129.56,3.8599]
[1725632679479,3.8589,129.6,129.56,3.8599]
[1725632679978,3.8589,129.6,129.5,1.3031]
[1725632679979,3.79803578,129.59,129.51,44.52]
[1725632680178,44.52,129.61,129.51,44.52]
[1725632680372,44.52,129.61,129.56,3.8599]
[1725632680573,48.3788,129.61,129.51,44.52]
[1725632680774,48.3788,129.61,129.56,3.8599]
[1725632680976,48.3788,129.61,129.51,44.52]
[1725632681182,3.859,129.6,129.51,44.52]
[1725632681373,44.52,129.61,129.57,3.8598]
[1725632681881,44.52,129.63,129.58,3.8593]
[1725632682081,44.52,129.63,129.51,44.52]
[1725632682280,1.3105,129.62,129.51,44.52]
[1725632682481,44.52,129.59,129.55,3.8603]
[1725632682674,44.52,129.59,129.48,5.22519791]
[1725632682675,48.4442001,129.59,129.48,5.22519791]
[1725632682986,3.8602,129.56,129.52,3.8611]
[1725632683181,44.52,129.57,129.46,5.23753564]
[1725632683375,1.3407,129.58,129.46,5.23753564]
[1725632683376,1.3407,129.58,129.47,44.52]
[1725632684076,1.3407,129.58,129.54,3.8605]
[1725632684778,5.2003,129.58,129.54,3.8605]
[1725632684985,1.3407,129.58,129.47,44.52]
[1725632685682,1.3407,129.58,129.49,44.52]
[1725632685878,52.3035001,129.59,129.49,44.52]
[1725632686183,0.05460864,129.54,129.53,3.861]
[1725632686678,1.3434,129.64,129.53,48.36911979]
[1725632686873,1.3434,129.64,129.55,44.52]
[1725632687473,1.3434,129.64,129.53,48.36911979]
[1725632687682,3.8582,129.63,129.59,3.8592]
[1725632687982,1.3434,129.64,129.54,3.92916415]
[1725632688284,1.3434,129.64,129.53,44.52]
[1725632688489,1.3434,129.64,129.6,0.05050884]
[1725632688675,3.8581,129.63,129.6,0.05050884]
[1725632688879,1.3434,129.64,129.6,0.05050884]
[1725632689080,1.3434,129.64,129.53,48.37004051]
[1725632689482,3.88486629,129.66,129.61,0.05055867]
[1725632689681,3.8568,129.68,129.61,0.05055867]
[1725632689886,2.8127,129.71,129.61,0.05055867]
[1725632690078,47.3327,129.71,129.58,44.52]
[1725632690389,47.3327,129.71,129.59,2.6932]
[1725632690688,3.8563,129.69,129.65,3.9155295]
[1725632690992,3.8562,129.7,129.65,3.9155295]
[1725632691190,47.3327,129.71,129.66,3.8571]
[1725632691388,47.3327,129.71,129.65,0.0581295]
[1725632692383,44.52,129.69,129.59,1.3568]
[1725632692683,3.8574,129.66,129.61,3.8585]
[1725632692880,7.65608574,129.66,129.59,1.3568]
[1725632693084,3.8575,129.65,129.61,3.8584]
[1725632693284,44.52,129.65,129.54,2.7848]
[1725632693790,48.42519095,129.65,129.54,2.7848]
[1725632693996,0.05162004,129.61,129.54,2.7848]
[1725632694189,0.05162004,129.61,129.6,3.8589]
[1725632695089,2.8127,129.71,129.6,3.84579335]
[1725632695298,2.8127,129.71,129.59,0.05552511]
[1725632695495,2.8127,129.71,129.6,44.52]
[1725632695787,2.8127,129.71,129.54,2.7848]
[1725632695994,44.52,129.67,129.56,44.52]
[1725632696489,3.8574,129.66,129.61,0.05626378]
[1725632696688,7.62792188,129.66,129.61,0.05626378]
[1725632696887,3.77052188,129.66,129.61,0.05626378]
[1725632697188,44.52,129.67,129.61,0.05626378]
[1725632697585,3.8583,129.63,129.61,0.05626378]
[1725632697795,3.85668992,129.63,129.61,0.05626378]
[1725632697997,38.4149,129.64,129.61,0.05626378]
[1725632698190,42.28973087,129.64,129.54,2.7848]
[1725632698586,9.07763087,129.64,129.55,37.07]
[1725632698896,5.21973087,129.64,129.61,0.0575332]
[1725632699497,5.21973087,129.64,129.54,2.7848]
[1725632699498,3.8581,129.63,129.54,2.7848]
[1725632699684,3.8581,129.63,129.59,3.8591]
[1725632699887,9.07763087,129.64,129.61,0.05614509]
[1725632700288,3.8583,129.62,129.61,0.05614509]
[1725632700591,37.07,129.63,129.54,2.7848]
[1725632700890,37.07,129.62,129.54,2.7848]
[1725632701090,37.07,129.62,129.6,0.05309179]
[1725632701292,1.3178,129.63,129.53,1.3618]
[1725632701293,0.05827457,129.6,129.53,1.3618]
[1725632701594,0.05827457,129.6,129.54,3.8606]
[1725632701792,0.05827457,129.6,129.49,38.4615]
[1725632701988,0.05827457,129.6,129.49,1.3915]
[1725632702194,37.07,129.56,129.49,1.3915]
[1725632702389,3.86239152,129.55,129.49,1.3915]
[1725632703088,37.12592209,129.56,129.47,38.3971]
[1725632703288,37.12592209,129.56,129.51,0.05164782]
[1725632703486,37.07,129.56,129.51,0.05164782]
[1725632703689,3.8608,129.54,129.51,3.91304782]
[1725632704000,37.07,129.52,129.51,0.05164782]
[1725632704693,37.07,129.52,129.48,3.8623]
[1725632704896,37.07,129.5,129.42,42.2520507]
[1725632705188,0.05232355,129.53,129.44,37.07]
[1725632705396,2.6826,129.55,129.46,37.07]
[1725632705589,1.3898,129.55,129.46,37.07]
[1725632706092,37.07,129.54,129.44,37.07]
[1725632706290,3.8618,129.51,129.42,42.2520507]
[1725632706596,37.07,129.5,129.42,1.2765]
[1725632706796,0.05196701,129.52,129.41,3.95886089]
[1725632706990,37.07,129.47,129.37,37.07]
[1725632707189,37.07,129.47,129.36,2.7033]
[1725632707190,37.07,129.45,129.36,2.7033]
[1725632707485,3.8642,129.43,129.36,2.7033]
[1725632707687,37.07,129.41,129.33,3.89288307]
[1725632707887,37.07,129.41,129.25,7.7387]
[1725632707888,37.07,129.41,129.35,3.8662]
[1725632708098,44.57,129.41,129.32,3.85866439]
[1725632708394,44.57,129.41,129.3,44.57]
[1725632708395,3.865,129.4,129.3,44.57]
[1725632708594,44.57,129.41,129.3,48.38692403]
[1725632708796,48.40392937,129.41,129.31,3.92398033]
[1725632708989,0.05725356,129.38,129.36,3.8661]
[1725632709195,0.05725356,129.38,129.31,3.92398033]
[1725632709388,0.05725356,129.38,129.3,44.57]
[1725632709596,0.05725356,129.38,129.34,3.8664]
[1725632709791,0.05725356,129.38,129.28,2.7033]
[1725632709993,3.92282087,129.37,129.28,2.7033]
[1725632710300,44.57,129.39,129.29,44.57]
[1725632710597,1.364,129.45,129.41,3.8644]
[1725632710895,45.8849,129.46,129.41,3.8644]
[1725632711088,3.8623,129.49,129.44,3.8635]
[1725632711293,48.47388312,129.5,129.38,44.57]
[1725632711695,44.57,129.48,129.36,47.2555]
[1725632712000,44.62337502,129.48,129.36,51.06647977]
[1725632712389,0.05337502,129.48,129.38,44.57]
[1725632712594,48.47388312,129.5,129.38,44.57]
[1725632712790,3.90388312,129.5,129.4,44.57]
[1725632712999,0.05508036,129.44,129.4,44.57]
[1725632713396,49.78216387,129.52,129.4,44.57]
[1725632714403,53.64356387,129.52,129.48,3.8623]
[1725632714595,49.78216387,129.52,129.4,44.57]
[1725632714992,44.57,129.5,129.38,44.57]
[1725632715505,3.8627,129.49,129.44,3.8638]
[1725632715704,44.57,129.48,129.36,51.06647977]
[1725632717403,49.78216387,129.52,129.36,6.49647977]
[1725632717404,44.57,129.45,129.36,6.49647977]
[1725632717605,3.8644,129.44,129.36,2.6855]
[1725632717810,44.57,129.43,129.36,2.6855]
[1725632718008,44.57,129.43,129.36,1.3832]
[1725632718401,3.8652,129.41,129.37,3.866]
[1725632718909,44.57,129.41,129.29,47.3872]
[1725632719825,44.57,129.39,129.29,6.62118496]
[1725632720912,1.4168,129.44,129.31,44.57]
[1725632721505,5.2603566,129.44,129.31,44.57]
[1725632721909,5.2603566,129.44,129.34,44.57]
[1725632722202,44.57,129.48,129.36,44.57]
[1725632722402,3.8637,129.46,129.42,3.8645]
[1725632722605,3.80294339,129.45,129.37,1.3412]
[1725632722811,44.57,129.46,129.37,2.6806]
[1725632723008,0.05710995,129.45,129.37,2.6806]
[1725632723210,44.57,129.43,129.37,1.3412]
[1725632723408,44.57,129.43,129.31,44.57]
[1725632723609,44.57,129.41,129.31,44.57]
[1725632724213,3.8655,129.4,129.36,3.8663]
[1725632724624,44.57,129.39,129.3,2.6806]
[1725632725014,48.51466533,129.39,129.3,2.6806]
[1725632725515,48.51466533,129.39,129.3,6.49494946]
[1725632725711,3.8664,129.37,129.33,3.8672]
[1725632725917,48.51466533,129.39,129.3,6.49494946]
[1725632726324,3.94466533,129.39,129.36,3.8665]
[1725632726513,44.57,129.41,129.3,6.49494946]
[1725632726718,3.8658,129.39,129.35,3.8667]
[1725632727017,3.8658,129.39,129.3,6.49494946]
[1725632727320,3.81261885,129.39,129.3,6.49494946]
[1725632727519,44.57,129.39,129.3,6.49494946]
[1725632727728,3.85361475,129.38,129.3,6.49494946]
[1725632727912,3.8659,129.38,129.3,6.49494946]
[1725632728218,44.57,129.39,129.3,6.49494946]
[1725632728421,3.87449945,129.39,129.3,6.49494946]
[1725632728721,44.57,129.41,129.3,6.49494946]
[1725632728916,48.4358,129.39,129.35,3.8666]
[1725632729120,3.9503032,129.41,129.3,6.49494946]
[1725632729318,44.57,129.41,129.31,44.57]
[1725632729624,48.47543976,129.41,129.31,44.57]
[1725632730120,3.8653,129.4,129.31,44.57]
[1725632730322,48.47543976,129.41,129.31,44.57]
[1725632730518,52.34063976,129.41,129.37,3.866]
[1725632730711,48.47543976,129.41,129.37,3.866]
[1725632731223,3.8656,129.39,129.36,3.8663]
[1725632731415,48.47543976,129.41,129.3,6.49494946]
[1725632731823,3.8654,129.4,129.3,6.49494946]
[1725632732321,41.04543976,129.41,129.31,37.14]
[1725632732825,41.0058,129.39,129.35,3.8666]
[1725632733013,41.0058,129.39,129.3,6.49494946]
[1725632733214,41.04792941,129.39,129.3,6.49494946]
[1725632733615,41.04792941,129.39,129.36,3.8662]
[1725632733823,41.04792941,129.39,129.3,6.49494946]
[1725632734120,44.91352941,129.39,129.3,6.49494946]
[1725632734325,41.04792941,129.39,129.3,6.49494946]
[1725632734721,3.90792941,129.39,129.31,37.14]
[1725632735026,37.14,129.41,129.31,37.14]
[1725632735322,3.8656,129.39,129.36,3.8662]
[1725632735519,37.14,129.43,129.33,37.14]
[1725632735715,37.14,129.43,129.35,37.14]
[1725632735716,3.9600617,129.43,129.35,37.14]
[1725632735915,3.9600617,129.43,129.4,3.8652]
[1725632736318,37.14,129.43,129.35,37.14]
[1725632736625,37.14,129.41,129.31,37.14]
[1725632737528,37.14,129.41,129.36,3.8663]
[1725632737924,37.14,129.41,129.39,3.8654]
[1725632738333,37.14,129.41,129.31,44.876]
[1725632738623,41.0051,129.41,129.38,3.8658]
[1725632738821,37.14,129.41,129.31,44.876]
[1725632739022,37.14,129.41,129.39,3.8656]
[1725632739220,5.18717296,129.44,129.33,7.7348]
[1725632739221,37.14,129.43,129.33,7.7348]
[1725632739520,5.18717296,129.44,129.3,6.49494946]
[1725632739828,37.14,129.41,129.31,37.14]
[1725632740017,3.8657,129.39,129.35,3.8665]
[1725632740220,3.8657,129.39,129.31,37.14]
[1725632740417,37.14,129.41,129.31,37.14]
[1725632740617,37.14,129.41,129.35,3.8665]
[1725632740828,37.14,129.39,129.3,6.49494946]
[1725632741130,5.18717296,129.44,129.3,6.49494946]
[1725632741131,37.14,129.37,129.33,3.8671]
[1725632741325,40.93924671,129.37,129.3,2.6806]
[1725632741628,44.80554671,129.37,129.34,3.8671]
[1725632742225,3.8665,129.36,129.33,3.8672]
[1725632742629,40.93924671,129.37,129.3,2.6806]
[1725632743129,44.80564671,129.37,129.3,2.6806]
[1725632743524,37.14,129.41,129.3,2.6806]
[1725632743731,37.14,129.39,129.3,2.6806]
[1725632744040,37.14,129.37,129.3,2.6806]
[1725632744226,7.6555331,129.36,129.33,3.8672]
[1725632744428,37.14,129.35,129.29,1.418]
[1725632744935,41.07513734,129.35,129.29,1.418]
[1725632745331,44.94223734,129.35,129.31,3.8678]
[1725632745537,41.07513734,129.35,129.31,3.8678]
[1725632745930,3.8672,129.34,129.31,3.8678]
[1725632746127,3.8672,129.34,129.3,3.8682]
[1725632746331,41.07513734,129.35,129.3,3.8682]
[1725632746634,41.07513734,129.35,129.26,1.3201]
[1725632746635,37.14,129.33,129.26,1.3201]
[1725632746836,37.14,129.33,129.25,1.302]
[1725632747429,40.97429919,129.33,129.25,1.302]
[1725632747734,3.8681,129.31,129.25,1.302]
[1725632748127,3.8681,129.31,129.23,37.14]
[1725632748128,40.97429919,129.33,129.23,37.14]
[1725632748537,37.14,129.31,129.21,39.8639]
[1725632748737,3.8687,129.29,129.25,3.8695]
[1725632749039,37.14,129.27,129.21,2.7239]
[1725632749442,37.14,129.25,129.21,1.3618]
[1725632749946,41.01,129.25,129.21,3.8708]
[1725632750134,3.93207231,129.24,129.17,2.7408]
[1725632750436,37.14,129.23,129.19,3.8714]
[1725632750637,3.84769474,129.23,129.17,2.7408]
[1725632750833,41.0109,129.22,129.18,3.8717]
[1725632751035,41.0109,129.22,129.15,3.93362053]
[1725632751036,37.14,129.22,129.15,3.93362053]
[1725632751234,37.14,129.23,129.13,37.14]
[1725632751434,37.14,129.23,129.13,41.03762459]
[1725632751739,41.0105,129.23,129.19,3.8715]
[1725632752243,3.8708,129.22,129.13,41.03762459]
[1725632752437,37.14,129.23,129.13,41.03762459]
[1725632752638,41.03530227,129.25,129.22,3.8704]
[1725632752941,37.14,129.25,129.15,37.14]
[1725632753337,37.14,129.25,129.17,37.14]
[1725632753542,3.95209886,129.26,129.18,1.3761]
[1725632753844,44.93622873,129.27,129.19,2.6705]
[1725632754338,44.93622873,129.27,129.24,3.8701]
[1725632754541,37.14,129.29,129.19,2.6705]
[1725632755043,41.0087,129.29,129.19,2.6705]
[1725632755340,37.14,129.29,129.25,3.8696]
[1725632755538,6.68908396,129.3,129.19,2.6705]
[1725632755539,37.14,129.28,129.19,2.6705]
[1725632755836,37.14,129.28,129.25,3.8696]
[1725632756038,3.8687,129.29,129.25,3.8696]
[1725632756243,42.50818396,129.3,129.2,37.14]
[1725632756537,3.8689,129.28,129.19,2.6705]
[1725632756744,37.14,129.28,129.19,2.6705]
[1725632756936,37.14,129.28,129.25,3.8695]
[1725632757441,37.14,129.28,129.19,2.6705]
[1725632757643,3.8693,129.27,129.19,2.6705]
[1725632758035,37.14,129.28,129.19,2.6705]
[1725632758340,3.8689,129.29,129.19,2.6705]
[1725632758650,44.96408396,129.3,129.19,2.6705]
[1725632758838,44.96408396,129.3,129.2,37.14]
[1725632759150,41.09558396,129.3,129.2,37.14]
[1725632759342,37.14,129.28,129.19,2.6705]
[1725632759540,37.14,129.26,129.19,2.6705]
[1725632760235,37.14,129.27,129.25,3.8696]
[1725632760440,3.95344134,129.3,129.2,37.14]
[1725632760641,37.14,129.31,129.2,37.14]
[1725632760843,41.0081,129.31,129.2,37.14]
[1725632761142,3.8992581,129.3,129.2,37.14]
[1725632761347,37.14,129.28,129.19,2.6705]
[1725632761534,37.14,129.24,129.13,44.8867]
[1725632761740,37.14,129.22,129.14,1.3306]
[1725632761955,3.83385119,129.21,129.19,3.8716]
[1725632762243,3.83385119,129.21,129.14,5.11568628]
[1725632762244,37.14,129.22,129.14,5.11568628]
[1725632762551,37.14,129.18,129.04,7.7518]
[1725632762751,37.14,129.18,129.09,1.3306]
[1725632763048,37.14,129.18,129.14,3.8728]
[1725632763245,37.14,129.18,129.1,3.93768888]
[1725632763441,37.14,129.16,129.04,37.14]
[1725632763641,37.14,129.17,129.07,37.14]
[1725632763842,37.14,129.17,129.13,3.8732]
[1725632764048,0.05182859,129.15,129.07,3.92064932]
[1725632764349,0.05182859,129.15,129.12,3.8735]
[1725632764552,0.05182859,129.15,129.07,44.68]
[1725632764553,0.05182859,129.15,129.09,3.80601951]
[1725632764740,44.68,129.19,129.07,44.68]
[1725632764942,5.17689105,129.2,129.16,3.8724]
[1725632765248,46.0838,129.23,129.12,3.87340325]
[1725632765436,46.0838,129.23,129.13,48.737]
[1725632765641,49.91266802,129.23,129.13,4.057]
[1725632765842,44.68,129.21,129.13,1.3886]
[1725632766038,44.68,129.21,129.08,44.68]
[1725632766039,44.68,129.19,129.09,1.385]
[1725632766352,0.04929558,129.19,129.12,44.68]
[1725632766748,1.3444,129.3,129.18,44.68]
[1725632766946,46.0244,129.3,129.19,1.3983]
[1725632767145,49.82538509,129.3,129.21,44.68]
[1725632767346,1.2899,129.32,129.21,44.68]
[1725632767347,1.2899,129.32,129.23,44.68]
[1725632767548,1.2899,129.32,129.21,44.68]
[1725632767751,44.68,129.3,129.19,47.471]
[1725632768046,1.2899,129.32,129.21,44.68]
[1725632768250,5.19428428,129.32,129.28,3.8686]
[1725632768542,5.19428428,129.32,129.21,44.68]
[1725632768741,5.19428428,129.32,129.23,0.05529323]
[1725632769146,3.90438428,129.32,129.28,3.8687]
[1725632769451,44.68,129.33,129.21,44.68]
[1725632769645,48.57293605,129.33,129.21,44.68]
[1725632770042,1.3703,129.37,129.29,0.051135]
[1725632770245,45.9699,129.38,129.34,3.8669]
[1725632770441,45.9699,129.38,129.29,0.051135]
[1725632770646,45.9699,129.38,129.28,3.81245393]
[1725632770845,3098.62021,129.39,129.28,44.68]
[1725632771144,44.68,129.36,129.32,0.05578001]
[1725632771344,44.68,129.38,129.32,0.05578001]
[1725632771542,3098.62021,129.39,129.32,0.05578001]
[1725632771742,3098.62021,129.39,129.34,3.8671]
[1725632771946,3098.62021,129.39,129.32,0.05578001]
[1725632771947,44.68,129.38,129.32,0.05578001]
[1725632772150,44.68,129.38,129.28,5.32825283]
[1725632772445,3.8667,129.36,129.31,3.8677]
[1725632772746,3.86289622,129.35,129.34,0.05425475]
[1725632772947,0.05804511,129.34,129.22,44.68]
[1725632773151,44.68,129.32,129.22,1.3484]
[1725632773546,0.05804511,129.34,129.25,44.68]
[1725632773750,0.05804511,129.34,129.25,48.54947169]
[1725632773948,3.83466037,129.36,129.25,48.54947169]
[1725632774147,3099.93541,129.39,129.25,48.54947169]
[1725632774354,44.68,129.36,129.25,48.54947169]
[1725632774543,3.81841509,129.35,129.25,48.54947169]
[1725632774949,0.0546299,129.33,129.31,0.0529922]